bitfinex-derivatives/quotes_SOLF0:USTF0_20241216
["timestamp","ask_amount","ask_price","bid_price","bid_amount"]
[1734391803040,6.48921167,216.55,216.49,4.96874364]
[1734391803244,46.74369834,216.58,216.51,6.48921167]
[1734391803446,46.74369834,216.58,216.53,6.48921167]
[1734391803745,6.48921167,216.63,216.57,2.3079]
[1734391803936,6.48921167,216.63,216.55,6.48921167]
[1734391804144,2.3075,216.62,216.55,6.48921167]
[1734391804342,2.3075,216.62,216.57,2.3079]
[1734391804535,2.3075,216.62,216.58,4.96434313]
[1734391804742,2.3075,216.62,216.57,2.3079]
[1734391805138,2.3075,216.62,216.58,4.96431968]
[1734391805445,6.48921167,216.63,216.55,6.48921167]
[1734391805446,6.48921167,216.63,216.56,2.308]
[1734391805644,6.48921167,216.61,216.51,4.7332]
[1734391805950,2.3078,216.59,216.54,6.48921167]
[1734391806142,2.3078,216.59,216.55,7.26992069]
[1734391806746,2.3078,216.59,216.56,4.96182069]
[1734391806947,2.3078,216.59,216.55,2.3081]
[1734391807147,2.3078,216.59,216.56,4.95961572]
[1734391807347,2.3078,216.59,216.55,2.3081]
[1734391807544,2.3078,216.59,216.56,4.95801813]
[1734391807749,2.3079,216.58,216.54,8.79741167]
[1734391807948,6.48921167,216.59,216.51,3.1685]
[1734391808153,6.48921167,216.59,216.52,11.44754374]
[1734391808353,6.48921167,216.59,216.52,18.7143248]
[1734391808354,2.3079,216.57,216.52,18.7143248]
[1734391808655,2.3079,216.57,216.53,4.95862146]
[1734391808850,2.3079,216.57,216.52,13.75594374]
[1734391809052,2.3079,216.57,216.53,4.95781182]
[1734391809252,2.3079,216.57,216.52,13.75594374]
[1734391809553,2.3079,216.57,216.53,4.95714233]
[1734391809756,2.3081,216.56,216.52,7.26673207]
[1734391809945,6.48921167,216.59,216.53,4.95718641]
[1734391809946,6.48921167,216.57,216.53,4.95718641]
[1734391810150,6.48921167,216.57,216.52,4.95833207]
[1734391810847,2.44,216.59,216.52,4.95833207]
[1734391811048,6.48921167,216.56,216.52,4.95833207]
[1734391811254,5.44576203,216.67,216.52,4.95833207]
[1734391811555,2.3084,216.53,216.52,4.95833207]
[1734391811954,6.48921167,216.57,216.52,4.95833207]
[1734391812454,2.44,216.58,216.54,6.48921167]
[1734391812856,6.48921167,216.61,216.54,6.48921167]
[1734391813359,2.308,216.57,216.54,8.79741167]
[1734391814450,2.308,216.57,216.54,6.48921167]
[1734391816455,2.308,216.57,216.53,2.3084]
[1734391816456,6.48921167,216.59,216.53,2.3084]
[1734391816659,2.3081,216.56,216.53,2.3084]
[1734391818260,2.3081,216.56,216.52,6.48921167]
[1734391818659,6.48921167,216.59,216.51,9.65771167]
[1734391819362,2.3082,216.55,216.51,9.65771167]
[1734391820061,2.3082,216.55,216.51,11.96631167]
[1734391822362,6.48921167,216.57,216.51,3.1685]
[1734391822761,2.3081,216.56,216.51,3.1685]
[1734391822963,6.48921167,216.57,216.51,3.1685]
[1734391823368,2.3083,216.54,216.51,3.1685]
[1734391823570,2.3083,216.54,216.51,9.65771167]
[1734391825267,6.48921167,216.57,216.48,2.3088]
[1734391825268,2.3085,216.52,216.48,2.3088]
[1734391825562,2.3085,216.52,216.49,11.44516822]
[1734391825763,2.3085,216.52,216.49,6.48921167]
[1734391827071,2.3085,216.52,216.49,8.79801167]
[1734391827673,2.3085,216.52,216.5,4.95658715]
[1734391827971,2.3085,216.52,216.49,8.79801167]
[1734391828173,2.3085,216.52,216.5,4.95685869]
[1734391828474,2.3085,216.52,216.49,8.79801167]
[1734391828675,2.3085,216.52,216.5,4.95737475]
[1734391828872,2.3085,216.52,216.49,8.79801167]
[1734391829170,2.3085,216.52,216.48,2.3089]
[1734391829377,6.48921167,216.55,216.49,4.95781972]
[1734391829575,6.48921167,216.53,216.47,6.48921167]
[1734391829773,2.3087,216.5,216.48,4.95819417]
[1734391829973,2.3087,216.5,216.47,8.79821167]
[1734391830368,2.3087,216.5,216.48,4.95827866]
[1734391830573,2.3087,216.5,216.47,8.79821167]
[1734391831067,2.3087,216.5,216.48,4.95850048]
[1734391831273,2.3087,216.5,216.47,8.79821167]
[1734391831477,2.3087,216.5,216.48,4.95863221]
[1734391831674,2.3087,216.5,216.47,8.79821167]
[1734391831874,2.44,216.58,216.48,4.95895623]
[1734391832068,2.3084,216.53,216.49,13.7568679]
[1734391832275,6.48921167,216.57,216.5,4.95895623]
[1734391832473,2.3083,216.54,216.51,4.9593227]
[1734391832678,2.3083,216.54,216.5,2.3086]
[1734391832879,2.3083,216.54,216.51,4.95924116]
[1734391833074,2.3083,216.54,216.52,4.95914367]
[1734391833277,2.3083,216.54,216.5,2.3086]
[1734391833476,2.3083,216.54,216.51,4.95961081]
[1734391833679,2.3083,216.54,216.52,4.95961081]
[1734391833880,2.3083,216.54,216.51,8.79771167]
[1734391834082,2.3083,216.54,216.52,4.95984092]
[1734391834484,2.3083,216.54,216.51,8.79771167]
[1734391834781,2.3083,216.54,216.52,4.96060316]
[1734391834980,2.3083,216.54,216.51,8.79771167]
[1734391835182,2.3083,216.54,216.52,4.96060374]
[1734391835482,2.3083,216.54,216.51,8.79771167]
[1734391835673,2.3083,216.54,216.52,4.9615674]
[1734391835873,2.3083,216.54,216.51,8.79771167]
[1734391836175,2.3083,216.54,216.52,4.9615674]
[1734391836378,2.3083,216.54,216.51,8.79771167]
[1734391836578,2.3083,216.54,216.52,4.96240308]
[1734391836780,2.3083,216.54,216.51,8.79771167]
[1734391837082,2.3083,216.54,216.52,4.96239239]
[1734391837274,2.3083,216.54,216.51,2.3085]
[1734391837475,2.3083,216.54,216.52,4.96243143]
[1734391837677,2.3083,216.54,216.51,2.3085]
[1734391837878,2.3084,216.53,216.52,4.96320091]
[1734391838075,6.48921167,216.56,216.52,4.96320091]
[1734391838276,6.48921167,216.56,216.5,6.48921167]
[1734391838577,6.48921167,216.56,216.51,7.27258643]
[1734391838578,2.3083,216.54,216.51,7.27258643]
[1734391838777,2.3083,216.54,216.52,4.96398643]
[1734391838974,2.3083,216.54,216.51,2.3086]
[1734391839176,2.3083,216.54,216.52,11.45329256]
[1734391839376,4.6145,216.64,216.53,4.96408089]
[1734391839579,2.308,216.57,216.54,13.76216556]
[1734391839775,2.308,216.57,216.54,8.79741167]
[1734391840384,2.308,216.57,216.55,4.96482044]
[1734391840687,2.308,216.57,216.54,8.79741167]
[1734391841084,2.3078,216.59,216.56,8.79721167]
[1734391841588,2.3078,216.59,216.57,4.96717691]
[1734391841886,2.3078,216.59,216.58,4.96717691]
[1734391843987,2.3078,216.59,216.56,8.79721167]
[1734391844187,2.3078,216.59,216.57,4.96810942]
[1734391844387,2.3078,216.59,216.58,4.96810942]
[1734391845481,2.3078,216.59,216.56,2.308]
[1734391845679,2.3078,216.59,216.57,4.96762408]
[1734391845879,2.3078,216.59,216.56,2.308]
[1734391846084,2.3078,216.59,216.57,4.96753305]
[1734391846289,2.3078,216.59,216.56,2.308]
[1734391846491,2.3078,216.59,216.57,4.96763859]
[1734391846790,2.3078,216.59,216.56,2.308]
[1734391847089,2.3078,216.59,216.57,4.967454]
[1734391847287,2.3078,216.59,216.56,2.308]
[1734391847682,2.3078,216.59,216.57,9.9354886]
[1734391847890,2.3078,216.59,216.57,4.96777066]
[1734391848691,2.3078,216.58,216.57,4.96777066]
[1734391856287,2.3087,216.5,216.47,14.24125329]
[1734391856491,2.3087,216.5,216.48,4.97044047]
[1734391856693,2.3087,216.5,216.49,4.97044047]
[1734391856888,2.3087,216.5,216.47,14.24125329]
[1734391857092,2.3087,216.5,216.48,4.96967303]
[1734391857392,6.48921167,216.52,216.44,8.02401167]
[1734391857594,6.48921167,216.52,216.46,6.48921167]
[1734391857987,6.48921167,216.52,216.46,11.45763894]
[1734391858191,2.3089,216.48,216.47,9.93694713]
[1734391858392,2.3089,216.48,216.47,4.96851986]
[1734391859796,2.3088,216.5,216.47,4.96851986]
[1734391859991,2.3088,216.5,216.48,11.45773153]
[1734391860291,2.3088,216.5,216.48,6.48921167]
[1734391860890,2.3084,216.53,216.48,6.48921167]
[1734391861086,2.38,216.56,216.5,6.48921167]
[1734391861290,6.48921167,216.57,216.5,6.48921167]
[1734391861594,2.3085,216.52,216.5,6.48921167]
[1734391862197,6.48921167,216.55,216.48,6.48921167]
[1734391862395,2.3087,216.51,216.48,6.48921167]
[1734391862695,2.3087,216.51,216.49,4.96535337]
[1734391862898,2.3087,216.51,216.48,6.48921167]
[1734391863598,2.3087,216.51,216.49,4.96474283]
[1734391863793,2.3087,216.51,216.48,6.48921167]
[1734391863994,2.3087,216.51,216.49,4.96477795]
[1734391864292,2.3087,216.51,216.48,6.48921167]
[1734391864489,2.3087,216.51,216.49,4.96455703]
[1734391864691,2.3087,216.51,216.5,4.96455703]
[1734391865699,2.3087,216.51,216.5,4.96437663]
[1734391866101,2.3085,216.52,216.5,4.96437663]
[1734391866290,2.3085,216.52,216.51,4.96422579]
[1734391868892,2.3085,216.52,216.48,6.48921167]
[1734391869092,2.3085,216.52,216.49,4.9641963]
[1734391869289,2.3085,216.52,216.5,4.9641963]
[1734391869489,2.3085,216.52,216.48,6.48921167]
[1734391869490,2.3085,216.52,216.51,4.9641963]
[1734391871991,2.3085,216.52,216.48,8.79811167]
[1734391872299,2.3085,216.52,216.51,4.96405906]
[1734391872990,2.3084,216.53,216.51,4.96405906]
[1734391873198,2.3084,216.53,216.5,6.48921167]
[1734391873400,2.3084,216.53,216.51,4.96408004]
[1734391873595,2.3084,216.53,216.5,6.48921167]
[1734391873801,8.86921167,216.57,216.51,4.96390899]
[1734391874101,6.48921167,216.57,216.52,4.96390899]
[1734391874395,6.48921167,216.57,216.53,4.96390899]
[1734391874597,2.46,216.58,216.5,6.48921167]
[1734391874598,2.3082,216.55,216.5,6.48921167]
[1734391874801,2.3082,216.55,216.51,4.96377191]
[1734391874996,2.3082,216.55,216.52,4.96377191]
[1734391875293,2.46,216.58,216.5,6.48921167]
[1734391875500,2.3082,216.54,216.51,7.27221901]
[1734391875796,6.48921167,216.65,216.52,13.91282651]
[1734391876096,6.48921167,216.65,216.57,8.79701167]
[1734391876300,6.48921167,216.65,216.53,12.03531484]
[1734391876301,6.48921167,216.63,216.58,4.96361484]
[1734391876501,6.48921167,216.61,216.56,2.46]
[1734391876697,2.3078,216.59,216.57,4.9624852]
[1734391876899,2.3078,216.59,216.56,2.46]
[1734391877096,2.3078,216.59,216.57,4.96246539]
[1734391877302,2.3078,216.59,216.56,2.46]
[1734391877604,2.3078,216.59,216.57,4.96225925]
[1734391877797,2.3078,216.59,216.56,2.46]
[1734391877998,2.3078,216.59,216.57,4.96192669]
[1734391878192,2.3078,216.59,216.56,2.46]
[1734391878402,2.3078,216.59,216.57,4.96156148]
[1734391878700,2.3078,216.59,216.56,2.46]
[1734391878901,2.3078,216.59,216.57,4.9613112]
[1734391879196,2.3078,216.59,216.56,2.46]
[1734391879396,2.3078,216.59,216.57,4.96107276]
[1734391879591,2.3078,216.59,216.56,4.768]
[1734391879795,2.3078,216.59,216.57,4.96081597]
[1734391879992,2.3078,216.59,216.56,4.768]
[1734391880198,2.3078,216.59,216.57,4.96082593]
[1734391880400,2.3078,216.59,216.56,4.768]
[1734391880601,2.3078,216.59,216.57,4.96033024]
[1734391880793,2.3078,216.59,216.56,4.768]
[1734391881196,2.3081,216.55,216.53,4.6117]
[1734391881397,2.3081,216.55,216.53,3.0967]
[1734391881598,6.48921167,216.59,216.53,3.0967]
[1734391882203,6.48921167,216.61,216.54,6.48921167]
[1734391882799,2.3078,216.59,216.55,2.308]
[1734391883001,6.48921167,216.61,216.54,6.48921167]
[1734391883199,2.3076,216.6,216.56,2.3079]
[1734391883395,6.48921167,216.61,216.56,2.3079]
[1734391883601,6.48921167,216.61,216.54,6.48921167]
[1734391883801,2.3078,216.59,216.55,7.26787526]
[1734391884002,2.3078,216.59,216.56,4.95987526]
[1734391884308,2.3078,216.59,216.55,2.308]
[1734391884605,2.3078,216.59,216.56,4.95975945]
[1734391884805,2.3078,216.59,216.55,2.308]
[1734391885106,2.3079,216.57,216.56,4.95952139]
[1734391885307,6.48921167,216.57,216.53,3.0967]
[1734391885506,6.48921167,216.57,216.54,4.95992486]
[1734391885707,2.46,216.6,216.48,6.48921167]
[1734391886006,6.48921167,216.55,216.49,4.959962]
[1734391886203,6.48921167,216.55,216.5,4.959962]
[1734391886405,6.48921167,216.55,216.48,6.48921167]
[1734391886607,6.48921167,216.55,216.49,4.9605112]
[1734391886802,6.48921167,216.55,216.47,2.46]
[1734391887103,2.3088,216.49,216.48,4.96060362]
[1734391887405,2.3086,216.51,216.48,4.96060362]
[1734391887607,2.3086,216.51,216.49,4.96060362]
[1734391887807,2.3086,216.51,216.5,4.96060362]
[1734391888507,2.3086,216.51,216.47,8.79811167]
[1734391888709,2.3086,216.51,216.5,4.96113154]
[1734391889307,2.3085,216.52,216.5,4.96113154]
[1734391889501,2.3085,216.52,216.48,2.3089]
[1734391889702,2.3085,216.52,216.49,4.96179848]
[1734391889907,2.3085,216.52,216.5,4.96179848]
[1734391890108,2.3085,216.52,216.48,2.3089]
[1734391890309,2.3086,216.51,216.49,4.96181317]
[1734391890506,2.3086,216.51,216.5,4.96181317]
[1734391891508,2.3086,216.51,216.47,6.48921167]
[1734391891509,2.3086,216.51,216.48,2.3089]
[1734391891807,2.3086,216.51,216.49,4.96241575]
[1734391892111,2.3086,216.51,216.5,4.96241575]
[1734391895311,2.3086,216.51,216.5,4.96337289]
[1734391896011,2.42,216.61,216.5,4.96337289]
[1734391896311,6.48921167,216.59,216.52,6.48921167]
[1734391896618,6.48921167,216.59,216.53,2.3083]
[1734391896619,2.3081,216.56,216.53,2.3083]
[1734391896812,6.48921167,216.59,216.52,6.48921167]
[1734391897116,6.48921167,216.59,216.53,4.96288763]
[1734391897414,6.48921167,216.59,216.53,6.48921167]
[1734391898217,2.3081,216.56,216.53,6.48921167]
[1734391900414,2.3081,216.56,216.53,8.79751167]
[1734391903323,2.3081,216.56,216.54,7.27197046]
[1734391903521,2.3081,216.56,216.54,2.3082]
[1734391903718,2.42,216.62,216.55,11.4536361]
[1734391903719,2.3079,216.58,216.55,11.4536361]
[1734391903914,6.48921167,216.62,216.55,6.48921167]
[1734391904114,6.48921167,216.62,216.56,4.96401788]
[1734391904417,2.3076,216.61,216.58,2.3078]
[1734391905214,2.3076,216.61,216.59,4.96408107]
[1734391905414,6.48921167,216.64,216.59,2.3077]
[1734391906014,2.42,216.65,216.57,6.48921167]
[1734391906220,2.3073,216.63,216.6,2.3076]
[1734391910328,2.3073,216.63,216.58,1.5638]
[1734391910625,2.3073,216.63,216.59,13.75744842]
[1734391910920,2.3073,216.63,216.6,4.96048379]
[1734391911125,2.3073,216.63,216.59,8.79691167]
[1734391911326,2.3073,216.63,216.6,4.9598116]
[1734391911625,2.3073,216.63,216.59,8.79691167]
[1734391911828,2.3073,216.63,216.6,7.26742642]
[1734391912017,2.3073,216.63,216.6,2.3076]
[1734391912223,2.3074,216.62,216.61,4.95958128]
[1734391912421,6.48921167,216.63,216.58,1.5638]
[1734391912618,7.83720496,216.69,216.58,1.5638]
[1734391912825,7.83720496,216.69,216.59,4.95891262]
[1734391913025,6.48921167,216.64,216.59,2.3077]
[1734391913421,2.3072,216.64,216.6,2.3075]
[1734391913626,2.3072,216.64,216.6,8.79671167]
[1734391914721,2.3072,216.64,216.61,4.9578055]
[1734391914925,2.3072,216.64,216.6,8.79671167]
[1734391915124,2.3072,216.64,216.61,4.95776315]
[1734391915325,2.3072,216.64,216.6,8.79671167]
[1734391915725,2.3072,216.64,216.61,2.3075]
[1734391918027,2.3072,216.64,216.62,4.95533512]
[1734391918224,2.3072,216.64,216.61,2.3075]
[1734391918429,2.3068,216.68,216.63,2.3073]
[1734391918629,6.48921167,216.7,216.64,6.48921167]
[1734391919332,2.307,216.66,216.64,6.48921167]
[1734391921334,2.3069,216.68,216.64,8.79641167]
[1734391921537,5.64914531,216.73,216.64,8.79641167]
[1734391921737,6.48921167,216.71,216.64,8.79641167]
[1734391922437,2.3069,216.67,216.64,8.79641167]
[1734391924942,2.307,216.66,216.64,6.48921167]
[1734391925333,2.307,216.66,216.64,8.79641167]
[1734391925635,2.307,216.66,216.64,2.3072]
[1734391925841,2.3072,216.64,216.6,2.34]
[1734391926039,6.48921167,216.69,216.61,6.48921167]
[1734391926735,6.48921167,216.69,216.63,6.48921167]
[1734391927439,2.3069,216.67,216.64,2.3072]
[1734391927941,2.3069,216.67,216.65,6.48921167]
[1734391928943,2.3066,216.7,216.65,8.82921167]
[1734391929137,2.3066,216.7,216.68,6.48921167]
[1734391930537,2.3066,216.7,216.67,2.3068]
[1734391931141,2.3064,216.71,216.68,2.3067]
[1734391932535,2.3064,216.71,216.68,8.79591167]
[1734391932742,2.3064,216.71,216.69,2.3066]
[1734391932939,2.34,216.78,216.7,6.48921167]
[1734391933144,8.82921167,216.78,216.7,6.48921167]
[1734391933441,2.3059,216.77,216.74,6.48921167]
[1734391933646,2.34,216.83,216.74,6.48921167]
[1734391933941,2.34,216.83,216.76,8.79511167]
[1734391933942,8.82921167,216.83,216.76,8.79511167]
[1734391934245,2.3055,216.8,216.78,6.48921167]
[1734391934439,8.82921167,216.83,216.78,6.48921167]
[1734391934640,2.3056,216.79,216.78,6.48921167]
[1734391934841,8.82921167,216.83,216.78,6.48921167]
[1734391935042,2.3056,216.8,216.78,6.48921167]
[1734391936943,2.3056,216.79,216.78,6.48921167]
[1734391937140,6.48921167,216.84,216.78,6.48921167]
[1734391937539,5.58543281,216.87,216.78,6.48921167]
[1734391937740,39.05850518,216.9,216.78,8.79491167]
[1734391937940,6.48921167,216.86,216.78,8.79491167]
[1734391938136,39.05850518,216.9,216.78,6.48921167]
[1734391938137,6.48921167,216.84,216.78,6.48921167]
[1734391939042,2.3054,216.81,216.78,6.48921167]
[1734391939742,2.3055,216.8,216.76,12.55917022]
[1734391940049,6.48921167,216.8,216.76,11.06907022]
[1734391940242,6.48921167,216.78,216.62,6.44995419]
[1734391940543,6.48921167,216.76,216.71,6.48921167]
[1734391940747,6.48921167,216.76,216.62,4.5074]
[1734391940748,6.48921167,216.76,216.69,2.34]
[1734391940941,6.48921167,216.76,216.7,6.48921167]
[1734391941140,6.48921167,216.76,216.72,5.66958245]
[1734391941350,2.306,216.75,216.72,5.66958245]
[1734391942742,6.48921167,216.78,216.72,5.66958245]
[1734391942947,2.3061,216.74,216.72,5.66958245]
[1734391945250,6.48921167,216.76,216.62,4.5074]
[1734391945449,6.48921167,216.76,216.69,6.48921167]
[1734391945842,6.48921167,216.78,216.71,6.48921167]
[1734391946853,6.48921167,216.78,216.69,5.5482173]
[1734391947148,6.48921167,216.76,216.7,6.48921167]
[1734391947752,2.3064,216.72,216.7,6.48921167]
[1734391950351,6.48921167,216.76,216.66,4.6469]
[1734391950551,2.34,216.8,216.68,12.16617842]
[1734391950845,6.48921167,216.76,216.7,6.48921167]
[1734391951051,6.48921167,216.78,216.7,6.48921167]
[1734391951850,2.3063,216.73,216.7,6.48921167]
[1734391952155,42.13010253,216.9,216.72,6.48921167]
[1734391952457,6.48921167,216.84,216.76,6.48921167]
[1734391952748,8.82921167,216.84,216.76,6.48921167]
[1734391953346,2.3058,216.78,216.76,6.48921167]
[1734391955156,6.48921167,216.84,216.76,6.48921167]
[1734391955356,8.82921167,216.84,216.76,6.48921167]
[1734391956257,2.3057,216.79,216.76,6.48921167]
[1734391956852,2.3057,216.79,216.75,2.306]
[1734391957155,2.3057,216.79,216.78,6.48921167]
[1734391957856,36.71850518,216.9,216.78,6.48921167]
[1734391958056,2.3054,216.81,216.8,6.48921167]
[1734391960660,6.48921167,216.86,216.76,2.3]
[1734391960859,6.48921167,216.84,216.76,2.3]
[1734391961059,6.48921167,216.84,216.77,6.48921167]
[1734391961859,2.3057,216.79,216.77,6.48921167]
[1734391962057,6.48921167,216.84,216.77,6.48921167]
[1734391962659,2.3057,216.79,216.77,6.48921167]
[1734391963361,2.3057,216.78,216.77,6.48921167]
[1734391963561,6.48921167,216.82,216.75,6.48921167]
[1734391964463,2.3059,216.77,216.75,6.48921167]
[1734391965057,6.48921167,216.8,216.73,6.48921167]
[1734391965255,2.3061,216.75,216.73,6.48921167]
[1734391967462,6.48921167,216.8,216.72,4.6869]
[1734391967662,6.48921167,216.78,216.68,7.86239748]
[1734391967869,6.48921167,216.76,216.7,6.48921167]
[1734391968165,2.3066,216.7,216.68,12.05160915]
[1734391968664,2.3066,216.7,216.69,4.95089102]
[1734391968865,2.3066,216.7,216.68,12.05160915]
[1734391969171,2.3066,216.7,216.69,4.95217982]
[1734391969464,2.3066,216.7,216.68,12.05160915]
[1734391969868,6.48921167,216.76,216.68,12.05160915]
[1734391970069,2.3066,216.69,216.68,12.05160915]
[1734391970270,2.3066,216.69,216.68,17.00501824]
[1734391971263,6.48921167,216.72,216.6,4.4854]
[1734391971466,6.48921167,216.72,216.68,4.95488251]
[1734391971663,8.78921167,216.72,216.64,6.48921167]
[1734391971968,8.78921167,216.72,216.65,4.95544567]
[1734391972163,8.78921167,216.72,216.64,6.48921167]
[1734391973266,8.78921167,216.72,216.64,12.1129742]
[1734391974468,2.3068,216.68,216.64,12.1129742]
[1734391975871,8.78921167,216.72,216.64,7.93096253]
[1734391975872,2.3066,216.7,216.64,7.93096253]
[1734391976060,2.3066,216.7,216.64,14.4201742]
[1734391979272,2.3067,216.69,216.64,14.4201742]
[1734391979770,2.3067,216.69,216.64,7.93096253]
[1734391979970,2.3067,216.69,216.65,6.48921167]
[1734391981870,2.3067,216.69,216.64,2.3072]
[1734391982071,2.3068,216.68,216.64,6.48921167]
[1734391990182,6.48921167,216.66,216.6,4.4854]
[1734391990377,8.74921167,216.66,216.6,4.4854]
[1734391990686,2.3073,216.64,216.6,2.9446]
[1734391991182,2.3073,216.63,216.59,6.48921167]
[1734391991382,8.74921167,216.66,216.59,6.48921167]
[1734391991885,2.3073,216.63,216.59,6.48921167]
[1734391993386,4.567,216.66,216.61,8.79671167]
[1734391993587,4.567,216.66,216.63,6.48921167]
[1734391996483,2.26,216.66,216.63,6.48921167]
[1734391997687,2.3069,216.67,216.63,6.48921167]
[1734391998790,2.26,216.69,216.63,8.79641167]
[1734391999292,6.48921167,216.68,216.61,6.48921167]
[1734391999590,6.48921167,216.66,216.6,3.0672]
[1734392000284,2.3073,216.64,216.6,3.0672]
[1734392000488,6.48921167,216.66,216.6,3.0672]
[1734392001296,2.3073,216.63,216.6,3.0672]
[1734392004600,2.3074,216.62,216.6,3.0672]
[1734392004799,6.48921167,216.66,216.6,3.0672]
[1734392005399,6.48921167,216.64,216.6,3.0672]
[1734392005597,8.74921167,216.64,216.6,3.0672]
[1734392006299,2.3075,216.62,216.6,3.0672]
[1734392006493,2.26,216.64,216.6,3.0672]
[1734392006696,2.26,216.67,216.61,6.48921167]
[1734392006895,2.3071,216.65,216.61,8.79671167]
[1734392007196,6.48921167,216.69,216.61,6.48921167]
[1734392007399,2.26,216.68,216.61,6.48921167]
[1734392007601,2.3071,216.66,216.62,2.3074]
[1734392007805,2.26,216.68,216.62,2.3074]
[1734392008503,2.307,216.66,216.61,8.79661167]
[1734392010007,2.3071,216.65,216.61,8.79661167]
[1734392012107,2.3071,216.65,216.61,2.3074]
[1734392012705,6.48921167,216.67,216.61,2.3074]
[1734392012902,6.48921167,216.65,216.6,3.0672]
[1734392013304,6.48921167,216.65,216.58,6.48921167]
[1734392013709,6.48921167,216.65,216.57,7.96798305]
[1734392013909,6.48921167,216.63,216.58,4.96271126]
[1734392014202,6.48921167,216.63,216.53,3.0459]
[1734392014203,6.48921167,216.63,216.57,6.48921167]
[1734392014410,8.74921167,216.63,216.57,6.48921167]
[1734392014609,2.3076,216.61,216.57,6.48921167]
[1734392015312,2.3076,216.61,216.57,8.79711167]
[1734392015513,4.5673,216.63,216.57,6.48921167]
[1734392016115,4.6127,216.72,216.59,6.48921167]
[1734392016310,2.3072,216.65,216.61,6.48921167]
[1734392017212,2.3072,216.65,216.61,8.79661167]
[1734392017805,2.3072,216.65,216.63,6.48921167]
[1734392018613,2.3072,216.65,216.61,8.79661167]
[1734392018824,2.3072,216.65,216.62,4.96565592]
[1734392019007,2.3072,216.65,216.61,8.79661167]
[1734392019316,2.3072,216.65,216.62,4.96588963]
[1734392019511,2.3072,216.65,216.62,9.93195877]
[1734392019710,2.3072,216.65,216.62,4.96588963]
[1734392021814,2.307,216.66,216.62,7.27328963]
[1734392022715,2.307,216.66,216.62,4.96588963]
[1734392023424,4.5668,216.68,216.63,11.45716752]
[1734392023610,2.3068,216.68,216.63,8.79651167]
[1734392024921,2.3068,216.68,216.63,2.3073]
[1734392026623,6.48921167,216.69,216.63,2.3073]
[1734392026923,2.3069,216.67,216.63,2.3073]
[1734392027823,2.3069,216.67,216.64,4.9694677]
[1734392028125,2.3069,216.67,216.63,2.3073]
[1734392028320,2.3069,216.67,216.64,4.96961035]
[1734392028519,2.3069,216.67,216.63,2.3073]
[1734392028923,2.3069,216.67,216.64,4.9696081]
[1734392029123,2.3069,216.67,216.63,2.3073]
[1734392029326,2.307,216.66,216.64,4.97000446]
[1734392029520,6.48921167,216.67,216.61,5.62446401]
[1734392029728,6.48921167,216.67,216.62,4.97002524]
[1734392030022,6.48921167,216.67,216.61,5.62446401]
[1734392030229,6.48921167,216.67,216.62,4.97029367]
[1734392030519,2.3071,216.65,216.61,7.93196401]
[1734392030727,2.3071,216.65,216.62,4.97058516]
[1734392030924,6.48921167,216.67,216.61,7.93196401]
[1734392031129,2.3072,216.65,216.61,7.93196401]
[1734392032428,2.3072,216.64,216.61,7.93196401]
[1734392032628,2.3072,216.64,216.6,5.3201]
[1734392032820,2.3072,216.64,216.61,4.97137078]
[1734392033026,2.3072,216.64,216.6,5.3201]
[1734392033326,2.3072,216.64,216.61,4.97138559]
[1734392033530,2.3072,216.64,216.6,5.3201]
[1734392033731,2.3072,216.64,216.61,4.97170568]
[1734392033927,2.3072,216.64,216.6,5.3201]
[1734392034126,2.3072,216.64,216.61,4.97170632]
[1734392034330,2.3072,216.64,216.6,5.3201]
[1734392034631,2.3072,216.64,216.61,4.97206138]
[1734392034831,2.3072,216.64,216.6,5.3201]
[1734392035131,2.3072,216.64,216.6,10.87471591]
[1734392035333,2.3072,216.64,216.61,4.97204658]
[1734392035531,2.3072,216.64,216.6,10.87471591]
[1734392035732,2.3072,216.64,216.61,4.97220241]
[1734392035927,6.48921167,216.67,216.61,2.3074]
[1734392036130,6.48921167,216.67,216.62,4.97201652]
[1734392036331,2.3072,216.64,216.6,15.05632758]
[1734392036627,2.3072,216.64,216.61,4.97206563]
[1734392036832,2.3072,216.64,216.62,4.97206563]
[1734392037025,2.3072,216.64,216.6,17.36392758]
[1734392037231,2.3072,216.64,216.61,4.97205021]